{"text_format":"1","workbook":"xlsx","n_sheets":2,"sheets":["【調査票 05】児童自立支援施設","data"],"not_rendered":{"charts":0,"images":1,"macros":1,"external_links":0,"defined_names":1,"comments":0,"pivot_tables":0},"unopened":[],"bounds":{"document_bytes":16777216,"sheet_cells":100000,"rows_first":2000,"rows_last":500,"rows_between":2000,"halvings":0,"cell_chars":16384,"cell_head_chars":4096},"cells_cut":0,"cells_raw":0,"read":"whole","date_system":"1900"}

{"sheet":"【調査票 05】児童自立支援施設","index":0,"n_rows":111,"n_cols":98,"rows_kept":111,"cut":false,"hidden":false,"merged":[[102,1,104,15],[106,1,106,15],[107,1,107,15],[110,1,112,15],[8,34,10,38],[83,1,93,15],[98,1,100,15],[66,4,66,15],[14,1,66,3],[28,16,30,21],[22,16,22,21],[15,4,15,15],[17,4,21,15],[55,4,61,15],[22,4,30,15],[49,4,51,15],[98,42,98,52],[99,42,99,52],[100,42,100,52],[68,1,81,3],[68,4,80,15],[68,36,72,46],[74,36,80,46],[81,4,81,15],[23,16,24,21],[25,16,25,21],[26,16,27,21],[15,30,15,35],[15,60,15,65],[32,4,46,15],[15,79,15,82],[42,43,42,55],[1,0,2,16],[0,1,0,89],[4,1,4,89],[5,1,5,89],[8,1,10,9],[8,10,10,15],[8,16,10,19],[8,20,10,23],[8,24,10,27],[8,28,10,33],[8,39,10,42],[8,68,10,74],[9,77,9,89],[12,77,12,89],[95,68,95,71],[62,72,62,76],[93,39,93,54],[20,73,20,77],[15,38,15,45],[15,49,15,52],[15,68,15,75],[22,56,27,67]]}
[null,"令和４年度児童養護施設入所児童等調査"]
[]
[]
[]
[null,"児童自立支援施設入所児童票(施設長記入用)"]
[null,"（令和５年２月１日現在）"]
[null,"　　　　　　　　　　　　　　　　　　　　　　　　　　　　　　　　　　　　　　　"]
[]
[null,"都道府県\n指定都市\n中核市\n児童相談所設置市\n（番号）",null,null,null,null,null,null,null,null,null,null,null,null,null,null,"施設\n\n番号",null,null,null,null,null,null,null,"児童\n\n番号",null,null,null,null,null,null,null,null,null,"調査票\n\n種別",null,null,null,null,"５",null,null,null,null,null,null,null,null,null,null,null,null,null,null,null,null,null,null,null,null,null,null,null,null,null,null,null,null,"都道府県\n指定都市\n中 核 市\n児童相談所設置市\n（名称）"]
[null,null,null,null,null,null,null,null,null,null,null,null,null,null,null,null,null,null,null,null,null,null,null,null,null,null,null,null,null,null,null,null,null,null,null,null,null,null,null,null,null,null,null,null,null,null,null,null,null,null,null,null,null,null,null,null,null,null,null,null,null,null,null,null,null,null,null,null,null,null,null,null,null,null,null,null,null,""]
[]
[]
[null,null,null,null,null,null,null,null,null,null,null,null,null,null,null,null,null,null,null,null,null,null,null,null,null,null,null,null,null,null,null,null,null,null,null,null,null,null,null,null,null,null,null,null,null,null,null,null,null,null,null,null,null,null,null,null,null,null,null,null,null,null,null,null,null,null,null,null,"施設の名称",null,null,null,null,null,null,null,null,""]
[]
[null,"児童の現在の状況",null,null,null,null,null,null,null,null,null,null,null,null,null,null,null,null,null,null,null,null,null,null,null,null,null,null,null,null,null,null,null,null,null,null,null,null,null,null,null,null,null,null,null,null,null,null,null,null,null,null,null,null,null,null,null,null,null,null,null,null,null,null,null,null,null,null,null,null,null,null,null,null,null,null,null,null,null,null,null,null,null,null,null,null,null,null,null,null,null,null,null,null,null,null,"出生年月",{"$f":"AM16&RIGHT(100+ AX16,2)","v":"00"}]
[null,null,null,null,"(1)\n性別",null,null,null,null,null,null,null,null,null,null,null,null,null,"0",null,null,null,null,null,null,null,null,null,null,null,"(2)\n出生年月",null,null,null,null,null,null,"西暦",null,null,null,null,null,null,null,null,"年",null,null,null,null,null,null,"月",null,null,null,null,null,null,"(3)\n入所年月",null,null,null,null,null,null,"西暦",null,null,null,null,null,null,null,null,"年",null,null,null,null,null,null,"月",null,null,null,null,null,null,null,null,null,null,null,null,"委託年月",{"$f":"BQ16&RIGHT(100+ CB16,2)","v":"00"}]
[]
[null,null,null,null,"(4)\n入所経路"]
[]
[]
[null,null,null,null,null,null,null,null,null,null,null,null,null,null,null,null,null,null,null,null,null,null,null,null,null,null,null,null,null,null,null,null,null,null,null,null,null,null,null,null,null,null,null,null,null,null,null,null,null,null,null,null,null,null,null,null,null,null,null,null,null,null,null,null,null,null,null,null,null,null,null,null,null,null,null,null,null,null,")"]
[]
[null,null,null,null,"(5)\n就学及び\n就職状況",null,null,null,null,null,null,null,null,null,null,null,"就学前",null,null,null,null,null,null,null,null,null,null,null,null,null,null,null,null,null,null,null,null,null,null,null,null,null,null,null,null,null,null,null,null,null,null,null,null,null,null,null,"(5) 就学及び就職状況の「04 小学１年」～「14 私立高校」の補問"]
[null,null,null,null,null,null,null,null,null,null,null,null,null,null,null,null,"小学校"]
[]
[null,null,null,null,null,null,null,null,null,null,null,null,null,null,null,null,"中学校"]
[null,null,null,null,null,null,null,null,null,null,null,null,null,null,null,null,"中学卒"]
[]
[null,null,null,null,null,null,null,null,null,null,null,null,null,null,null,null,"高校卒"]
[]
[]
[]
[null,null,null,null,"(6)\n心身の状況\n\n(複数回答可)",null,null,null,null,null,null,null,null,null,null,null,null,null,false]
[]
[null,null,null,null,null,null,null,null,null,null,null,null,null,null,null,null,null,null,false,null,null,null,null,null,null,null,null,null,null,null,null,null,null,null,false,null,null,null,null,null,null,null,null,null,null,null,null,null,null,false,null,null,null,null,null,null,null,null,null,null,null,null,null,false]
[]
[null,null,null,null,null,null,null,null,null,null,null,null,null,null,null,null,null,null,false,null,null,null,null,null,null,null,null,null,null,null,null,null,null,null,false,null,null,null,null,null,null,null,null,null,null,null,null,null,null,false,null,null,null,null,null,null,null,null,null,null,null,null,null,false]
[]
[null,null,null,null,null,null,null,null,null,null,null,null,null,null,null,null,null,null,false,null,null,null,null,null,null,null,null,null,null,null,null,null,null,null,false,null,null,null,null,null,null,null,null,null,null,null,null,null,null,null,null,null,null,null,false]
[]
[null,null,null,null,null,null,null,null,null,null,null,null,null,null,null,null,null,null,false,null,null,null,null,null,null,null,null,null,null,null,null,null,null,null,null,null,null,null,null,null,null,null,false,null,null,null,null,null,null,null,false,null,null,null,null,null,null,null,null,null,null,null,null,false]
[]
[null,null,null,null,null,null,null,null,null,null,null,null,null,null,null,null,null,null,false,null,null,null,null,null,null,null,null,null,null,null,null,null,null,null,false,null,null,null,null,null,null,null,null,null,null,null,null,null,null,null,null,null,null,null,null,null,")"]
[]
[null,null,null,null,null,null,null,null,null,null,null,null,null,null,null,null,null,null,false]
[]
[null,null,null,null,null,null,null,null,null,null,null,null,null,null,null,null,null,null,false]
[]
[]
[null,null,null,null,"(7)\n罹病傾向\n(複数回答可)",null,null,null,null,null,null,null,null,null,null,null,null,null,false,null,null,null,null,null,null,null,null,null,null,null,null,null,null,null,false,null,null,null,null,null,null,null,null,null,null,null,null,null,null,null,false,null,null,null,null,null,null,null,null,null,null,null,false]
[]
[null,null,null,null,null,null,null,null,null,null,null,null,null,null,null,null,null,null,false,null,null,null,null,null,null,null,null,null,null,null,null,null,null,null,false,null,null,null,null,null,null,null,null,null,null,null,null,null,null,null,false]
[]
[]
[null,null,null,null,null,null,null,null,null,null,null,null,null,null,null,null,null,null,false,null,null,null,null,null,null,null,null,null,null,null,null,null,null,null,false,null,null,null,null,null,null,null,null,null,null,null,null,null,null,false,null,null,null,null,null,null,null,null,null,null,null,null,null,null,null,null,false]
[null,null,null,null,"(8)\n特に支援上\n留意している点\n\n(複数回答可)"]
[null,null,null,null,null,null,null,null,null,null,null,null,null,null,null,null,null,null,false,null,null,null,null,null,null,null,null,null,null,null,null,null,null,null,false,null,null,null,null,null,null,null,null,null,null,null,null,null,null,false,null,null,null,null,null,null,null,null,null,null,null,null,null,null,null,null,false]
[]
[null,null,null,null,null,null,null,null,null,null,null,null,null,null,null,null,null,null,false,null,null,null,null,null,null,null,null,null,null,null,null,null,null,null,false,null,null,null,null,null,null,null,null,null,null,null,null,null,null,false,null,null,null,null,null,null,null,null,null,null,null,null,null,null,null,null,false]
[]
[null,null,null,null,null,null,null,null,null,null,null,null,null,null,null,null,null,null,false,null,null,null,null,null,null,null,null,null,null,null,null,null,null,null,false,null,null,null,null,null,null,null,null,null,null,null,null,null,null,false,null,null,null,null,null,null,null,null,null,null,null,null,null,null,null,null,false]
[]
[null,null,null,null,null,null,null,null,null,null,null,null,null,null,null,null,null,null,false,null,null,null,null,null,null,null,null,null,null,null,null,null,null,null,false,null,null,null,null,null,null,null,null,null,null,null,null,null,null,false,null,null,null,null,null,null,null,null,null,null,null,null,null,null,null,null,false,null,null,null,null,null,null,null,null,null,null,")"]
[]
[null,null,null,null,null,null,null,null,null,null,null,null,null,null,null,null,null,null,false]
[]
[null,null,null,null,"(9)\n学業の状況"]
[]
[null,"入所時の家庭の状況",null,null,"(10)\n保護者の状況",null,null,null,null,null,null,null,null,null,null,null,null,null,null,null,null,null,null,null,null,null,null,null,null,null,null,null,null,null,null,null,"(10)の両親又は父母のどちらかありの補問"]
[]
[]
[]
[]
[]
[null,null,null,null,null,null,null,null,null,null,null,null,null,null,null,null,null,null,null,null,null,null,null,null,null,null,null,null,null,null,null,null,null,null,null,null,"(10)の両親ともいない又は不明の補問"]
[]
[]
[]
[]
[]
[]
[null,null,null,null,"(11)\n課税状況"]
[]
[null,"(12)\n養護問題発生理由\n(複数回答可)",null,null,null,null,null,null,null,null,null,null,null,null,null,null,null,null,false,null,null,null,null,null,null,null,null,null,null,null,null,null,null,null,false,null,null,null,null,null,null,null,null,null,null,null,false,null,null,null,null,null,null,null,null,null,null,null,null,null,null,null,false,null,null,null,null,null,null,null,null,null,null,null,null,null,null,false]
[]
[null,null,null,null,null,null,null,null,null,null,null,null,null,null,null,null,null,null,false,null,null,null,null,null,null,null,null,null,null,null,null,null,null,null,false,null,null,null,null,null,null,null,null,null,null,null,false,null,null,null,null,null,null,null,null,null,null,null,null,null,null,null,false,null,null,null,null,null,null,null,null,null,null,null,null,null,null,false]
[]
[null,null,null,null,null,null,null,null,null,null,null,null,null,null,null,null,null,null,false,null,null,null,null,null,null,null,null,null,null,null,null,null,null,null,false,null,null,null,null,null,null,null,null,null,null,null,false,null,null,null,null,null,null,null,null,null,null,null,null,null,null,null,false,null,null,null,null,null,null,null,null,null,null,null,null,null,null,false]
[]
[null,null,null,null,null,null,null,null,null,null,null,null,null,null,null,null,null,null,false,null,null,null,null,null,null,null,null,null,null,null,null,null,null,null,false,null,null,null,null,null,null,null,null,null,null,null,false,null,null,null,null,null,null,null,null,null,null,null,null,null,null,null,false,null,null,null,null,null,null,null,null,null,null,null,null,null,null,false]
[]
[null,null,null,null,null,null,null,null,null,null,null,null,null,null,null,null,null,null,false,null,null,null,null,null,null,null,null,null,null,null,null,null,null,null,false,null,null,null,null,null,null,null,null,null,null,null,false,null,null,null,null,null,null,null,null,null,null,null,null,null,null,null,false]
[]
[null,null,null,null,null,null,null,null,null,null,null,null,null,null,null,null,null,null,false,null,null,null,null,null,null,null,null,null,null,null,null,null,null,null,false,null,null,null,null,null,null,null,null,null,null,null,null,null,null,null,null,null,null,null,null,")"]
[]
[null,null,null,null,null,null,null,null,null,null,null,null,null,null,null,null,null,null,null,null,null,null,null,null,null,null,null,null,null,null,null,null,null,null,null,null,null,null,null,null,null,null,null,null,null,null,null,"選択したもののうち、主な理由１つ"]
[]
[]
[null,"(13)\n被虐待経験の状況",null,null,null,null,null,null,null,null,null,null,null,null,null,null,null,null,null,null,null,null,null,null,null,null,null,null,null,null,null,null,null,null,null,null,null,null,null,null,null,null,"(13)の補問"]
[null,null,null,null,null,null,null,null,null,null,null,null,null,null,null,null,null,null,null,null,null,null,null,null,null,null,null,null,null,null,null,null,null,null,null,null,null,null,null,null,null,null,"　虐待の種類",null,null,null,null,null,null,null,null,null,null,null,null,null,null,null,null,null,false,null,null,null,null,null,null,null,null,null,null,false]
[null,null,null,null,null,null,null,null,null,null,null,null,null,null,null,null,null,null,null,null,null,null,null,null,null,null,null,null,null,null,null,null,null,null,null,null,null,null,null,null,null,null,"（複数回答可）"]
[null,null,null,null,null,null,null,null,null,null,null,null,null,null,null,null,null,null,null,null,null,null,null,null,null,null,null,null,null,null,null,null,null,null,null,null,null,null,null,null,null,null,null,null,null,null,null,null,null,null,null,null,null,null,null,null,null,null,null,null,false,null,null,null,null,null,null,null,null,null,null,false]
[null,"(14)\n現在の家族との関係"]
[null,null,null,null,null,null,null,null,null,null,null,null,null,null,null,null,null,"交流あり　（  ",null,null,null,null,null,null,null,null,null,null,null,null,null,null,null,null,null,null,null,null,null,null,null,null,null,null,null,null,null,null,null,null,null,null,null,null,null,null,null,")"]
[]
[]
[null,"(14)の補問"]
[null,"家族との交流の頻度"]
[]
[]
[null,"(15)\n児童の今後の見通し"]

{"sheet":"data","index":1,"n_rows":5,"n_cols":107,"rows_kept":5,"cut":false,"hidden":true,"merged":[[2,7,3,7],[2,8,2,9],[1,0,3,0],[1,1,1,6],[2,1,3,1],[2,2,3,2],[2,3,3,3],[2,4,3,4],[2,5,3,5],[2,6,3,6],[2,10,2,11],[2,12,3,12],[2,13,3,13],[2,14,3,14],[1,8,1,9],[1,10,1,11],[1,12,1,13],[1,14,1,15],[2,15,3,15],[1,16,1,36],[2,16,2,36],[1,37,1,43],[2,37,2,43],[2,44,2,65],[1,44,1,65],[2,66,3,66],[1,67,1,69],[2,67,3,67],[2,68,3,68],[2,69,3,69],[1,104,1,105],[2,104,3,104],[2,105,3,105],[2,106,3,106],[2,70,3,70],[1,71,1,98],[2,71,2,98],[1,99,1,103],[2,99,3,99],[2,100,2,103]]}
[]
["項目","KEY番号",null,null,null,null,null,"質問１","質問２",null,"質問３",null,"質問４",null,"質問５",null,"質問６",null,null,null,null,null,null,null,null,null,null,null,null,null,null,null,null,null,null,null,null,"質問７",null,null,null,null,null,null,"質問８",null,null,null,null,null,null,null,null,null,null,null,null,null,null,null,null,null,null,null,null,null,"質問９","質問10",null,null,"質問11","質問12",null,null,null,null,null,null,null,null,null,null,null,null,null,null,null,null,null,null,null,null,null,null,null,null,null,null,null,"質問13",null,null,null,null,"質問14",null,"質問15"]
[null,"都道府県・指定都市・中核市・児童相談所設置市番号","施設番号","児童番号","調査票種別","自治体名","施設名","性別","出生年月",null,"入所年月",null,"入所経路","具体的に","就学及び就職状況","補問","心身の状況",null,null,null,null,null,null,null,null,null,null,null,null,null,null,null,null,null,null,null,null,"罹病傾向",null,null,null,null,null,null,"特に支援上留意している点",null,null,null,null,null,null,null,null,null,null,null,null,null,null,null,null,null,null,null,null,null,"学業の状況","保護者の状況","補問1","補問2","課税状況","養護問題発生理由",null,null,null,null,null,null,null,null,null,null,null,null,null,null,null,null,null,null,null,null,null,null,null,null,null,null,null,"被虐待経験の状況","補問",null,null,null,"現在の家族との関係","補問","児童の今後の見通し"]
[null,null,null,null,null,null,null,null,"年","月","年","月",null,null,null,null,"01","02","03","04","05","06","07","08","09","10","11","12","13","14","15","16","17","18","19","20","その他障害",1,2,3,4,5,6,7,"01","02","03","04","05","06","07","08","09","10","11","12","13","14","15","16","17","18","19","20","21","その他フリーワード",null,null,null,null,null,"01","02","03","04","05","06","07","08","09","10","11","12","13","14","15","16","17","18","19","20","21","22","23","24","25","26","その他フリーワード","補問",null,1,2,3,4]
["回答",{"$f":"'【調査票 05】児童自立支援施設'!$K$9","v":0},{"$f":"'【調査票 05】児童自立支援施設'!$U$9","v":0},{"$f":"'【調査票 05】児童自立支援施設'!$AC$9","v":0},{"$f":"'【調査票 05】児童自立支援施設'!$AN$9","v":"５"},{"$f":"'【調査票 05】児童自立支援施設'!$BZ$10","v":""},{"$f":"'【調査票 05】児童自立支援施設'!$BZ$13","v":""},{"$f":"'【調査票 05】児童自立支援施設'!$S$16","v":"0"},{"$f":"'【調査票 05】児童自立支援施設'!$AM$16","v":0},{"$f":"'【調査票 05】児童自立支援施設'!$AX$16","v":0},{"$f":"'【調査票 05】児童自立支援施設'!$BQ$16","v":0},{"$f":"'【調査票 05】児童自立支援施設'!$CB$16","v":0},{"$f":"'【調査票 05】児童自立支援施設'!$U$19","v":0},{"$f":"'【調査票 05】児童自立支援施設'!$BV$21","v":0},{"$f":"'【調査票 05】児童自立支援施設'!$Y$23","v":0},{"$f":"'【調査票 05】児童自立支援施設'!$BR$23","v":0},{"$f":"IF('【調査票 05】児童自立支援施設'!$S$33=FALSE,0,1)","v":0},{"$f":"IF('【調査票 05】児童自立支援施設'!$S$35=FALSE,0,1)","v":0},{"$f":"IF('【調査票 05】児童自立支援施設'!$AI$35=FALSE,0,1)","v":0},{"$f":"IF('【調査票 05】児童自立支援施設'!$AX$35=FALSE,0,1)","v":0},{"$f":"IF('【調査票 05】児童自立支援施設'!$BL$35=FALSE,0,1)","v":0},{"$f":"IF('【調査票 05】児童自立支援施設'!$S$37=FALSE,0,1)","v":0},{"$f":"IF('【調査票 05】児童自立支援施設'!$AI$37=FALSE,0,1)","v":0},{"$f":"IF('【調査票 05】児童自立支援施設'!$AX$37=FALSE,0,1)","v":0},{"$f":"IF('【調査票 05】児童自立支援施設'!$BL$37=FALSE,0,1)","v":0},{"$f":"IF('【調査票 05】児童自立支援施設'!$S$39=FALSE,0,1)","v":0},{"$f":"IF('【調査票 05】児童自立支援施設'!$AI$39=FALSE,0,1)","v":0},{"$f":"IF('【調査票 05】児童自立支援施設'!$BC$39=FALSE,0,1)","v":0},{"$f":"IF('【調査票 05】児童自立支援施設'!$S$41=FALSE,0,1)","v":0},{"$f":"IF('【調査票 05】児童自立支援施設'!$AQ$41=FALSE,0,1)","v":0},{"$f":"IF('【調査票 05】児童自立支援施設'!$AY$41=FALSE,0,1)","v":0},{"$f":"IF('【調査票 05】児童自立支援施設'!$BL$41=FALSE,0,1)","v":0},{"$f":"IF('【調査票 05】児童自立支援施設'!$S$43=FALSE,0,1)","v":0},{"$f":"IF('【調査票 05】児童自立支援施設'!$AI$43=FALSE,0,1)","v":0},{"$f":"IF('【調査票 05】児童自立支援施設'!$S$45=FALSE,0,1)","v":0},{"$f":"IF('【調査票 05】児童自立支援施設'!$S$47=FALSE,0,1)","v":0},{"$f":"'【調査票 05】児童自立支援施設'!$AR$43","v":0},{"$f":"IF('【調査票 05】児童自立支援施設'!$S$50=FALSE,0,1)","v":0},{"$f":"IF('【調査票 05】児童自立支援施設'!$AI$50=FALSE,0,1)","v":0},{"$f":"IF('【調査票 05】児童自立支援施設'!$AY$50=FALSE,0,1)","v":0},{"$f":"IF('【調査票 05】児童自立支援施設'!$BK$50=FALSE,0,1)","v":0},{"$f":"IF('【調査票 05】児童自立支援施設'!$S$52=FALSE,0,1)","v":0},{"$f":"IF('【調査票 05】児童自立支援施設'!$AI$52=FALSE,0,1)","v":0},{"$f":"IF('【調査票 05】児童自立支援施設'!$AY$52=FALSE,0,1)","v":0},{"$f":"IF('【調査票 05】児童自立支援施設'!$S$55=FALSE,0,1)","v":0},{"$f":"IF('【調査票 05】児童自立支援施設'!$AI$55=FALSE,0,1)","v":0},{"$f":"IF('【調査票 05】児童自立支援施設'!$AX$55=FALSE,0,1)","v":0},{"$f":"IF('【調査票 05】児童自立支援施設'!$BO$55=FALSE,0,1)","v":0},{"$f":"IF('【調査票 05】児童自立支援施設'!$S$57=FALSE,0,1)","v":0},{"$f":"IF('【調査票 05】児童自立支援施設'!$AI$57=FALSE,0,1)","v":0},{"$f":"IF('【調査票 05】児童自立支援施設'!$AX$57=FALSE,0,1)","v":0},{"$f":"IF('【調査票 05】児童自立支援施設'!$BO$57=FALSE,0,1)","v":0},{"$f":"IF('【調査票 05】児童自立支援施設'!$S$59=FALSE,0,1)","v":0},{"$f":"IF('【調査票 05】児童自立支援施設'!$AI$59=FALSE,0,1)","v":0},{"$f":"IF('【調査票 05】児童自立支援施設'!$AX$59=FALSE,0,1)","v":0},{"$f":"IF('【調査票 05】児童自立支援施設'!$BO$59=FALSE,0,1)","v":0},{"$f":"IF('【調査票 05】児童自立支援施設'!$S$61=FALSE,0,1)","v":0},{"$f":"IF('【調査票 05】児童自立支援施設'!$AI$61=FALSE,0,1)","v":0},{"$f":"IF('【調査票 05】児童自立支援施設'!$AX$61=FALSE,0,1)","v":0},{"$f":"IF('【調査票 05】児童自立支援施設'!$BO$61=FALSE,0,1)","v":0},{"$f":"IF('【調査票 05】児童自立支援施設'!$S$63=FALSE,0,1)","v":0},{"$f":"IF('【調査票 05】児童自立支援施設'!$AI$63=FALSE,0,1)","v":0},{"$f":"IF('【調査票 05】児童自立支援施設'!$AX$63=FALSE,0,1)","v":0},{"$f":"IF('【調査票 05】児童自立支援施設'!$BO$63=FALSE,0,1)","v":0},{"$f":"IF('【調査票 05】児童自立支援施設'!$S$65=FALSE,0,1)","v":0},{"$f":"'【調査票 05】児童自立支援施設'!$BU$63","v":0},{"$f":"'【調査票 05】児童自立支援施設'!$S$67","v":0},{"$f":"'【調査票 05】児童自立支援施設'!$S$71","v":0},{"$f":"'【調査票 05】児童自立支援施設'!$AX$70","v":0},{"$f":"'【調査票 05】児童自立支援施設'!$AX$77","v":0},{"$f":"'【調査票 05】児童自立支援施設'!$S$82","v":0},{"$f":"IF('【調査票 05】児童自立支援施設'!$S$84=FALSE,0,1)","v":0},{"$f":"IF('【調査票 05】児童自立支援施設'!$AI$84=FALSE,0,1)","v":0},{"$f":"IF('【調査票 05】児童自立支援施設'!$AU$84=FALSE,0,1)","v":0},{"$f":"IF('【調査票 05】児童自立支援施設'!$BK$84=FALSE,0,1)","v":0},{"$f":"IF('【調査票 05】児童自立支援施設'!$BZ$84=FALSE,0,1)","v":0},{"$f":"IF('【調査票 05】児童自立支援施設'!$S$86=FALSE,0,1)","v":0},{"$f":"IF('【調査票 05】児童自立支援施設'!$AI$86=FALSE,0,1)","v":0},{"$f":"IF('【調査票 05】児童自立支援施設'!$AU$86=FALSE,0,1)","v":0},{"$f":"IF('【調査票 05】児童自立支援施設'!$BK$86=FALSE,0,1)","v":0},{"$f":"IF('【調査票 05】児童自立支援施設'!$BZ$86=FALSE,0,1)","v":0},{"$f":"IF('【調査票 05】児童自立支援施設'!$S$88=FALSE,0,1)","v":0},{"$f":"IF('【調査票 05】児童自立支援施設'!$AI$88=FALSE,0,1)","v":0},{"$f":"IF('【調査票 05】児童自立支援施設'!$AU$88=FALSE,0,1)","v":0},{"$f":"IF('【調査票 05】児童自立支援施設'!$BK$88=FALSE,0,1)","v":0},{"$f":"IF('【調査票 05】児童自立支援施設'!$BZ$88=FALSE,0,1)","v":0},{"$f":"IF('【調査票 05】児童自立支援施設'!$S$90=FALSE,0,1)","v":0},{"$f":"IF('【調査票 05】児童自立支援施設'!$AI$90=FALSE,0,1)","v":0},{"$f":"IF('【調査票 05】児童自立支援施設'!$AU$90=FALSE,0,1)","v":0},{"$f":"IF('【調査票 05】児童自立支援施設'!$BK$90=FALSE,0,1)","v":0},{"$f":"IF('【調査票 05】児童自立支援施設'!$BZ$90=FALSE,0,1)","v":0},{"$f":"IF('【調査票 05】児童自立支援施設'!$S$92=FALSE,0,1)","v":0},{"$f":"IF('【調査票 05】児童自立支援施設'!$AI$92=FALSE,0,1)","v":0},{"$f":"IF('【調査票 05】児童自立支援施設'!$AU$92=FALSE,0,1)","v":0},{"$f":"IF('【調査票 05】児童自立支援施設'!$BK$92=FALSE,0,1)","v":0},{"$f":"IF('【調査票 05】児童自立支援施設'!$S$94=FALSE,0,1)","v":0},{"$f":"IF('【調査票 05】児童自立支援施設'!$AI$94=FALSE,0,1)","v":0},{"$f":"'【調査票 05】児童自立支援施設'!$AN$94","v":0},{"$f":"'【調査票 05】児童自立支援施設'!$BQ$96","v":0},{"$f":"'【調査票 05】児童自立支援施設'!$S$100","v":0},{"$f":"IF('【調査票 05】児童自立支援施設'!$BI$100=FALSE,0,1)","v":0},{"$f":"IF('【調査票 05】児童自立支援施設'!$BT$100=FALSE,0,1)","v":0},{"$f":"IF('【調査票 05】児童自立支援施設'!$BI$102=FALSE,0,1)","v":0},{"$f":"IF('【調査票 05】児童自立支援施設'!$BT$102=FALSE,0,1)","v":0},{"$f":"'【調査票 05】児童自立支援施設'!$Z$105","v":0},{"$f":"'【調査票 05】児童自立支援施設'!$S$108","v":0},{"$f":"'【調査票 05】児童自立支援施設'!$S$112","v":0}]